[Event "Titled Tuesday Blitz October 5 2021"]
[White "Aradhya, Garg"]
[Black "Timmermans, Mark"]
[WhiteFideId "25006746"]
[BlackFideId "1026399"]
[WhiteElo "2146"]
[BlackElo "2460"]
[Result "0-1"]
[Round "08"]
[TimeControl "180+1"]
[Date "2021.10.05"]
[WhiteClock "0:00:02"]
[BlackClock "0:00:47"]

1. d4 {[%clk 0:03:00]}  Nf6 {[%clk 0:02:59]} 2. c4 {[%clk 0:03:01]}  e6 {[%clk 0:03:00]} 3. Nf3 {[%clk 0:03:01]}  d5 {[%clk 0:03:00]} 4. Nc3 {[%clk 0:03:01]}  dxc4 {[%clk 0:03:00]} 5. e4 {[%clk 0:02:58]}  b5 {[%clk 0:03:00]} 6. e5 {[%clk 0:02:57]}  Nd5 {[%clk 0:03:01]} 7. Nxb5 {[%clk 0:02:57]}  Nb6 {[%clk 0:03:02]} 8. a4 {[%clk 0:02:57]}  Nc6 {[%clk 0:02:59]} 9. Be2 {[%clk 0:02:56]}  a5 {[%clk 0:02:53]} 10. O-O {[%clk 0:02:55]}  Ba6 {[%clk 0:02:53]} 11. Be3 {[%clk 0:02:52]}  Rb8 {[%clk 0:02:51]} 12. Qc1 {[%clk 0:02:39]}  Nb4 {[%clk 0:02:39]} 13. Nd2 {[%clk 0:01:50]}  c6 {[%clk 0:02:32]} 14. Na3 {[%clk 0:01:49]}  Nd3 {[%clk 0:02:31]} 15. Bxd3 {[%clk 0:01:49]}  cxd3 {[%clk 0:02:32]} 16. Qxc6+ {[%clk 0:01:48]}  Qd7 {[%clk 0:02:31]} 17. Qf3 {[%clk 0:01:44]}  Bb4 {[%clk 0:02:23]} 18. Qg4 {[%clk 0:01:40]}  O-O {[%clk 0:02:08]} 19. Ne4 {[%clk 0:01:36]}  Kh8 {[%clk 0:02:02]} 20. b3 {[%clk 0:01:23]}  Nd5 {[%clk 0:01:52]} 21. Rfd1 {[%clk 0:01:19]}  f5 {[%clk 0:01:42]} 22. exf6 {[%clk 0:01:19]}  gxf6 {[%clk 0:01:43]} 23. Qh4 {[%clk 0:01:02]}  Nxe3 {[%clk 0:01:34]} 24. fxe3 {[%clk 0:01:01]}  f5 {[%clk 0:01:35]} 25. Nf2 {[%clk 0:00:54]}  d2 {[%clk 0:01:33]} 26. Nb1 {[%clk 0:00:43]}  Be2 {[%clk 0:01:30]} 27. Rxd2 {[%clk 0:00:43]}  Bxd2 {[%clk 0:01:29]} 28. Nxd2 {[%clk 0:00:44]}  e5 {[%clk 0:01:26]} 29. Re1 {[%clk 0:00:38]}  Ba6 {[%clk 0:01:17]} 30. Nf3 {[%clk 0:00:35]}  exd4 {[%clk 0:01:18]} 31. Nxd4 {[%clk 0:00:34]}  f4 {[%clk 0:01:16]} 32. Ne4 {[%clk 0:00:19]}  Rbe8 {[%clk 0:01:11]} 33. Nc5 {[%clk 0:00:18]}  Qd6 {[%clk 0:01:06]} 34. Nxa6 {[%clk 0:00:18]}  Qxa6 {[%clk 0:01:00]} 35. e4 {[%clk 0:00:17]}  Qb6 {[%clk 0:00:56]} 36. Qf2 {[%clk 0:00:17]}  Rd8 {[%clk 0:00:56]} 37. Rd1 {[%clk 0:00:11]}  Rfe8 {[%clk 0:00:55]} 38. Kh1 {[%clk 0:00:04]}  Rxe4 {[%clk 0:00:53]} 39. Qh4 {[%clk 0:00:05]}  Rexd4 {[%clk 0:00:53]} 40. Re1 {[%clk 0:00:02]}  Rd1 {[%clk 0:00:51]} 41. h3 {[%clk 0:00:02]}  Rxe1+ {[%clk 0:00:51]} 42. Qxe1 {[%clk 0:00:03]}  Qe3 {[%clk 0:00:50]} 43. Qa1+ {[%clk 0:00:03]}  Qd4 {[%clk 0:00:48]} 44. Qa2 {[%clk 0:00:02]}  f3 {[%clk 0:00:46]} 45. gxf3 {[%clk 0:00:02]}  Qd1+ {[%clk 0:00:46]} 46. Kh2 {[%clk 0:00:02]}  Rd2+ {[%clk 0:00:47]} 0-1


[Site "https://www.chess.com"]

[Event "Titled Tuesday Blitz October 5 2021"]
[White "Avramidou, Anastasia"]
[Black "Krivonosov, Oleg"]
[WhiteFideId "4239873"]
[BlackFideId "11600349"]
[WhiteElo "2183"]
[BlackElo "2469"]
[Result "1-0"]
[Round "08"]
[TimeControl "180+1"]
[Date "2021.10.05"]
[WhiteClock "0:00:13"]
[BlackClock "0:00:22"]

1. Nf3 {[%clk 0:03:00]}  d5 {[%clk 0:02:59]} 2. d4 {[%clk 0:02:59]}  Nf6 {[%clk 0:02:59]} 3. c4 {[%clk 0:03:00]}  e6 {[%clk 0:02:59]} 4. Nc3 {[%clk 0:03:00]}  Be7 {[%clk 0:02:58]} 5. Bg5 {[%clk 0:03:00]}  h6 {[%clk 0:02:57]} 6. Bxf6 {[%clk 0:03:00]}  Bxf6 {[%clk 0:02:57]} 7. e3 {[%clk 0:03:00]}  O-O {[%clk 0:02:56]} 8. h3 {[%clk 0:02:52]}  c5 {[%clk 0:02:55]} 9. cxd5 {[%clk 0:02:50]}  cxd4 {[%clk 0:02:54]} 10. Nxd4 {[%clk 0:02:44]}  exd5 {[%clk 0:02:53]} 11. Be2 {[%clk 0:02:43]}  Nc6 {[%clk 0:02:53]} 12. Nxc6 {[%clk 0:02:42]}  bxc6 {[%clk 0:02:53]} 13. O-O {[%clk 0:02:43]}  Bxc3 {[%clk 0:02:42]} 14. bxc3 {[%clk 0:02:41]}  Be6 {[%clk 0:02:42]} 15. Qd4 {[%clk 0:02:41]}  Qa5 {[%clk 0:02:41]} 16. c4 {[%clk 0:02:37]}  c5 {[%clk 0:02:36]} 17. Qf4 {[%clk 0:02:32]}  Rfd8 {[%clk 0:02:12]} 18. cxd5 {[%clk 0:02:23]}  Bxd5 {[%clk 0:02:10]} 19. Rfc1 {[%clk 0:02:22]}  Rac8 {[%clk 0:02:03]} 20. Bc4 {[%clk 0:02:21]}  Bxc4 {[%clk 0:01:57]} 21. Rxc4 {[%clk 0:02:22]}  Rd2 {[%clk 0:01:51]} 22. a4 {[%clk 0:02:11]}  Qc7 {[%clk 0:01:46]} 23. Qxc7 {[%clk 0:02:03]}  Rxc7 {[%clk 0:01:47]} 24. Rac1 {[%clk 0:02:03]}  Ra2 {[%clk 0:01:44]} 25. e4 {[%clk 0:01:53]}  g6 {[%clk 0:01:42]} 26. g3 {[%clk 0:01:50]}  Rd7 {[%clk 0:01:41]} 27. R1c2 {[%clk 0:01:44]}  Rxc2 {[%clk 0:01:37]} 28. Rxc2 {[%clk 0:01:45]}  Rd4 {[%clk 0:01:35]} 29. Rxc5 {[%clk 0:01:45]}  Rxa4 {[%clk 0:01:34]} 30. e5 {[%clk 0:01:45]}  Ra3 {[%clk 0:01:30]} 31. Kg2 {[%clk 0:01:45]}  h5 {[%clk 0:01:30]} 32. f4 {[%clk 0:01:27]}  Kf8 {[%clk 0:01:28]} 33. Rc7 {[%clk 0:01:26]}  Ke8 {[%clk 0:01:27]} 34. Kf2 {[%clk 0:01:26]}  a5 {[%clk 0:01:24]} 35. Ra7 {[%clk 0:01:25]}  a4 {[%clk 0:01:23]} 36. g4 {[%clk 0:01:26]}  h4 {[%clk 0:01:17]} 37. f5 {[%clk 0:01:23]}  gxf5 {[%clk 0:01:15]} 38. gxf5 {[%clk 0:01:24]}  Ra1 {[%clk 0:01:03]} 39. Kf3 {[%clk 0:01:10]}  a3 {[%clk 0:01:03]} 40. Kg4 {[%clk 0:01:10]}  a2 {[%clk 0:01:03]} 41. Kxh4 {[%clk 0:01:11]}  Rf1 {[%clk 0:00:57]} 42. Rxa2 {[%clk 0:01:09]}  Rxf5 {[%clk 0:00:57]} 43. Re2 {[%clk 0:01:10]}  Ke7 {[%clk 0:00:56]} 44. Kg4 {[%clk 0:01:10]}  Ke6 {[%clk 0:00:56]} 45. h4 {[%clk 0:01:06]}  Rf1 {[%clk 0:00:51]} 46. h5 {[%clk 0:00:59]}  Rg1+ {[%clk 0:00:51]} 47. Kh4 {[%clk 0:00:59]}  Rh1+ {[%clk 0:00:51]} 48. Kg5 {[%clk 0:01:00]}  Rg1+ {[%clk 0:00:51]} 49. Kh6 {[%clk 0:00:58]}  Rg3 {[%clk 0:00:50]} 50. Kh7 {[%clk 0:00:58]}  Rg1 {[%clk 0:00:49]} 51. h6 {[%clk 0:00:58]}  Rg3 {[%clk 0:00:49]} 52. Kh8 {[%clk 0:00:53]}  Rg6 {[%clk 0:00:44]} 53. h7 {[%clk 0:00:51]}  Rg5 {[%clk 0:00:44]} 54. Rf2 {[%clk 0:00:43]}  Rg1 {[%clk 0:00:38]} 55. Rf6+ {[%clk 0:00:42]}  Ke7 {[%clk 0:00:37]} 56. Ra6 {[%clk 0:00:41]}  Rg2 {[%clk 0:00:28]} 57. Ra7+ {[%clk 0:00:29]}  Ke6 {[%clk 0:00:26]} 58. Ra8 {[%clk 0:00:29]}  Kxe5 {[%clk 0:00:23]} 59. Rg8 {[%clk 0:00:30]}  Rh2 {[%clk 0:00:23]} 60. Kg7 {[%clk 0:00:29]}  f5 {[%clk 0:00:23]} 61. h8=Q {[%clk 0:00:23]}  Rxh8 {[%clk 0:00:22]} 62. Rxh8 {[%clk 0:00:23]}  f4 {[%clk 0:00:22]} 63. Rf8 {[%clk 0:00:13]}  Ke4 {[%clk 0:00:21]} 64. Kg6 {[%clk 0:00:14]}  f3 {[%clk 0:00:22]} 65. Kg5 {[%clk 0:00:14]}  Ke3 {[%clk 0:00:22]} 66. Kg4 {[%clk 0:00:14]}  f2 {[%clk 0:00:22]} 67. Kg3 {[%clk 0:00:13]} 1-0


[Site "https://www.chess.com"]

[Event "Titled Tuesday Blitz October 5 2021"]
[White "Brunner, Nicolas"]
[Black "Gasanov, Zaur"]
[WhiteFideId "620246"]
[BlackFideId "34125970"]
[WhiteElo "2372"]
[BlackElo "2099"]
[Result "0-1"]
[Round "08"]
[TimeControl "180+1"]
[Date "2021.10.05"]
[WhiteClock "0:01:27"]
[BlackClock "0:01:18"]

1. d4 {[%clk 0:03:00]}  Nf6 {[%clk 0:02:58]} 2. c4 {[%clk 0:03:01]}  g6 {[%clk 0:02:58]} 3. Nf3 {[%clk 0:03:00]}  Bg7 {[%clk 0:02:57]} 4. Nc3 {[%clk 0:03:01]}  d5 {[%clk 0:02:57]} 5. Bg5 {[%clk 0:03:00]}  dxc4 {[%clk 0:02:56]} 6. e4 {[%clk 0:02:56]}  c5 {[%clk 0:02:53]} 7. d5 {[%clk 0:02:56]}  b5 {[%clk 0:02:52]} 8. e5 {[%clk 0:02:55]}  b4 {[%clk 0:02:51]} 9. exf6 {[%clk 0:02:54]}  exf6 {[%clk 0:02:52]} 10. Qe2+ {[%clk 0:02:54]}  Kf8 {[%clk 0:02:50]} 11. Be3 {[%clk 0:02:53]}  bxc3 {[%clk 0:02:48]} 12. Bxc5+ {[%clk 0:02:53]}  Kg8 {[%clk 0:02:48]} 13. bxc3 {[%clk 0:02:53]}  h6 {[%clk 0:02:46]} 14. O-O-O {[%clk 0:02:40]}  Ba6 {[%clk 0:02:27]} 15. Qe7 {[%clk 0:02:33]}  Qa5 {[%clk 0:02:21]} 16. Bb4 {[%clk 0:02:27]}  Qxa2 {[%clk 0:02:18]} 17. Qe8+ {[%clk 0:02:23]}  Kh7 {[%clk 0:02:17]} 18. Qxf7 {[%clk 0:02:24]}  Bb5 {[%clk 0:02:01]} 19. Nh4 {[%clk 0:02:22]}  Be8 {[%clk 0:01:49]} 20. Qe6 {[%clk 0:01:57]}  Ba4 {[%clk 0:01:45]} 21. Qe2 {[%clk 0:01:56]}  Qa1+ {[%clk 0:01:38]} 22. Kd2 {[%clk 0:01:54]}  Qb2+ {[%clk 0:01:38]} 23. Ke1 {[%clk 0:01:48]}  Re8 {[%clk 0:01:38]} 24. Be7 {[%clk 0:01:30]}  Qxc3+ {[%clk 0:01:33]} 25. Rd2 {[%clk 0:01:27]}  Qc1+ {[%clk 0:01:27]} 26. Rd1 {[%clk 0:01:27]}  Bxd1 {[%clk 0:01:23]} 27. Qxd1 {[%clk 0:01:26]}  Rxe7+ {[%clk 0:01:23]} 28. Be2 {[%clk 0:01:27]}  Qxd1+ {[%clk 0:01:18]} 0-1


[Site "https://www.chess.com"]

[Event "Titled Tuesday Blitz October 5 2021"]
[White "Bykov, Egor"]
[Black "Vokhidov, Shamsiddin"]
[WhiteFideId "34115290"]
[BlackFideId "14204223"]
[WhiteElo "2221"]
[BlackElo "2616"]
[Result "0-1"]
[Round "08"]
[TimeControl "180+1"]
[Date "2021.10.05"]
[WhiteClock "0:00:36"]
[BlackClock "0:01:58"]

1. d4 {[%clk 0:03:00]}  Nf6 {[%clk 0:03:00]} 2. c4 {[%clk 0:03:00]}  e6 {[%clk 0:03:01]} 3. Nc3 {[%clk 0:02:58]}  Bb4 {[%clk 0:03:00]} 4. e3 {[%clk 0:02:58]}  O-O {[%clk 0:02:59]} 5. Bd3 {[%clk 0:02:58]}  d5 {[%clk 0:03:00]} 6. Ne2 {[%clk 0:02:57]}  b6 {[%clk 0:02:53]} 7. O-O {[%clk 0:02:53]}  Bb7 {[%clk 0:02:53]} 8. a3 {[%clk 0:02:48]}  Bd6 {[%clk 0:02:53]} 9. b4 {[%clk 0:02:42]}  dxc4 {[%clk 0:02:52]} 10. Bxc4 {[%clk 0:02:42]}  Nbd7 {[%clk 0:02:52]} 11. Ng3 {[%clk 0:02:27]}  Re8 {[%clk 0:02:46]} 12. Qe2 {[%clk 0:02:22]}  e5 {[%clk 0:02:42]} 13. d5 {[%clk 0:02:11]}  e4 {[%clk 0:02:40]} 14. Bb2 {[%clk 0:02:07]}  a6 {[%clk 0:02:37]} 15. Nf5 {[%clk 0:02:00]}  Ne5 {[%clk 0:02:35]} 16. Rfd1 {[%clk 0:01:53]}  Nxc4 {[%clk 0:02:29]} 17. Qxc4 {[%clk 0:01:53]}  Ng4 {[%clk 0:02:30]} 18. h3 {[%clk 0:01:38]}  Nxf2 {[%clk 0:02:05]} 19. Kxf2 {[%clk 0:01:38]}  Qf6 {[%clk 0:02:05]} 20. g4 {[%clk 0:01:22]}  g6 {[%clk 0:02:05]} 21. Qe2 {[%clk 0:00:59]}  gxf5 {[%clk 0:02:02]} 22. Nxe4 {[%clk 0:00:58]}  Qh4+ {[%clk 0:02:01]} 23. Kg1 {[%clk 0:00:45]}  Rxe4 {[%clk 0:02:00]} 24. Rf1 {[%clk 0:00:38]}  Qg3+ {[%clk 0:01:57]} 25. Qg2 {[%clk 0:00:37]}  Qxg2+ {[%clk 0:01:57]} 26. Kxg2 {[%clk 0:00:37]}  Rxe3 {[%clk 0:01:58]} 27. Rxf5 {[%clk 0:00:36]}  Re2+ {[%clk 0:01:58]} 28. Rf2 {[%clk 0:00:36]}  Bxd5+ {[%clk 0:01:58]} 0-1


[Site "https://www.chess.com"]

[Event "Titled Tuesday Blitz October 5 2021"]
[White "Cunha, Lucas Aguiar"]
[Black "Przybylski, Wojciech"]
[WhiteFideId "2125404"]
[BlackFideId "1117599"]
[WhiteElo "2361"]
[BlackElo "2247"]
[Result "1-0"]
[Round "08"]
[TimeControl "180+1"]
[Date "2021.10.05"]
[WhiteClock "0:02:59"]
[BlackClock "0:00:21"]

1. e4 {[%clk 0:03:00]}  c5 {[%clk 0:02:57]} 2. Nf3 {[%clk 0:03:00]}  e6 {[%clk 0:02:54]} 3. d4 {[%clk 0:03:00]}  cxd4 {[%clk 0:02:54]} 4. Nxd4 {[%clk 0:03:01]}  Nc6 {[%clk 0:02:55]} 5. Nc3 {[%clk 0:03:01]}  Qc7 {[%clk 0:02:55]} 6. Ndb5 {[%clk 0:03:00]}  Qb8 {[%clk 0:02:55]} 7. Be3 {[%clk 0:03:00]}  a6 {[%clk 0:02:51]} 8. Bb6 {[%clk 0:03:00]}  axb5 {[%clk 0:02:51]} 9. Nxb5 {[%clk 0:03:01]}  Bb4+ {[%clk 0:02:51]} 10. c3 {[%clk 0:03:02]}  Ba5 {[%clk 0:02:52]} 11. Nd6+ {[%clk 0:03:02]}  Kf8 {[%clk 0:02:40]} 12. Bc5 {[%clk 0:03:02]}  Nge7 {[%clk 0:02:34]} 13. Qh5 {[%clk 0:03:01]}  Nd8 {[%clk 0:02:25]} 14. Qh4 {[%clk 0:02:59]}  f6 {[%clk 0:02:00]} 15. Qh5 {[%clk 0:02:58]}  g6 {[%clk 0:01:29]} 16. Qh6+ {[%clk 0:02:58]}  Kg8 {[%clk 0:01:29]} 17. Ne8 {[%clk 0:02:58]}  Kf7 {[%clk 0:00:22]} 18. Qg7+ {[%clk 0:02:58]}  Kxe8 {[%clk 0:00:21]} 19. Qxe7# {[%clk 0:02:59]} 1-0


[Site "https://www.chess.com"]

[Event "Titled Tuesday Blitz October 5 2021"]
[White "Djordjevic, Vuk"]
[Black "Sjugirov, Sanan"]
[WhiteFideId "902098"]
[BlackFideId "4189302"]
[WhiteElo "2463"]
[BlackElo "2654"]
[Result "1-0"]
[Round "08"]
[TimeControl "180+1"]
[Date "2021.10.05"]
[WhiteClock "0:00:07"]
[BlackClock "0:00:01"]

1. d4 {[%clk 0:03:00]}  Nf6 {[%clk 0:02:59]} 2. Bg5 {[%clk 0:03:01]}  d5 {[%clk 0:02:54]} 3. Bxf6 {[%clk 0:03:00]}  exf6 {[%clk 0:02:49]} 4. e3 {[%clk 0:03:00]}  c6 {[%clk 0:02:46]} 5. c4 {[%clk 0:03:00]}  dxc4 {[%clk 0:02:42]} 6. Bxc4 {[%clk 0:03:01]}  Bd6 {[%clk 0:02:42]} 7. Nc3 {[%clk 0:03:00]}  f5 {[%clk 0:02:36]} 8. Nf3 {[%clk 0:03:00]}  O-O {[%clk 0:02:35]} 9. O-O {[%clk 0:03:00]}  Nd7 {[%clk 0:02:35]} 10. Qc2 {[%clk 0:02:59]}  Nf6 {[%clk 0:02:34]} 11. Rfd1 {[%clk 0:02:55]}  Qe7 {[%clk 0:02:34]} 12. Rab1 {[%clk 0:02:54]}  Re8 {[%clk 0:02:25]} 13. a3 {[%clk 0:02:54]}  Ne4 {[%clk 0:02:17]} 14. g3 {[%clk 0:02:51]}  Bd7 {[%clk 0:02:10]} 15. Ne5 {[%clk 0:02:43]}  Bxe5 {[%clk 0:02:00]} 16. dxe5 {[%clk 0:02:39]}  Nxc3 {[%clk 0:01:53]} 17. Qxc3 {[%clk 0:02:36]}  Be6 {[%clk 0:01:47]} 18. f4 {[%clk 0:02:20]}  Bxc4 {[%clk 0:01:36]} 19. Qxc4 {[%clk 0:02:20]}  Rad8 {[%clk 0:01:37]} 20. Kf2 {[%clk 0:02:20]}  g6 {[%clk 0:01:34]} 21. Ke2 {[%clk 0:02:08]}  c5 {[%clk 0:01:19]} 22. a4 {[%clk 0:01:46]}  b6 {[%clk 0:01:11]} 23. b3 {[%clk 0:01:16]}  Qb7 {[%clk 0:01:09]} 24. Kf2 {[%clk 0:01:15]}  Qc6 {[%clk 0:01:02]} 25. Qc2 {[%clk 0:01:11]}  a6 {[%clk 0:00:58]} 26. Rbc1 {[%clk 0:00:55]}  b5 {[%clk 0:00:49]} 27. axb5 {[%clk 0:00:34]}  axb5 {[%clk 0:00:50]} 28. Rd2 {[%clk 0:00:34]}  Rxd2+ {[%clk 0:00:43]} 29. Qxd2 {[%clk 0:00:34]}  Ra8 {[%clk 0:00:43]} 30. Rd1 {[%clk 0:00:33]}  c4 {[%clk 0:00:33]} 31. bxc4 {[%clk 0:00:32]}  Qxc4 {[%clk 0:00:33]} 32. Qe2 {[%clk 0:00:20]}  Qc5 {[%clk 0:00:12]} 33. Rd4 {[%clk 0:00:14]}  b4 {[%clk 0:00:09]} 34. Qb2 {[%clk 0:00:11]}  Rb8 {[%clk 0:00:03]} 35. e6 {[%clk 0:00:11]}  fxe6 {[%clk 0:00:02]} 36. Rd7 {[%clk 0:00:11]}  Qf8 {[%clk 0:00:02]} 37. Qe5 {[%clk 0:00:09]}  Re8 {[%clk 0:00:02]} 38. Rb7 {[%clk 0:00:08]}  h5 {[%clk 0:00:01]} 39. Qc7 {[%clk 0:00:07]}  Qh6 {[%clk 0:00:01]} 40. Qf7+ {[%clk 0:00:07]} 1-0


[Site "https://www.chess.com"]

[Event "Titled Tuesday Blitz October 5 2021"]
[White "Droin, Augustin"]
[Black "Hjartarson, Johann"]
[WhiteFideId "45105987"]
[BlackFideId "2300044"]
[WhiteElo "2464"]
[BlackElo "2502"]
[Result "0-1"]
[Round "08"]
[TimeControl "180+1"]
[Date "2021.10.05"]
[WhiteClock "0:00:14"]
[BlackClock "0:00:42"]

1. e4 {[%clk 0:03:00]}  g6 {[%clk 0:02:58]} 2. d4 {[%clk 0:03:00]}  Bg7 {[%clk 0:02:58]} 3. Nf3 {[%clk 0:03:01]}  d6 {[%clk 0:02:58]} 4. Bc4 {[%clk 0:03:01]}  Nf6 {[%clk 0:02:57]} 5. Qe2 {[%clk 0:03:01]}  O-O {[%clk 0:02:56]} 6. O-O {[%clk 0:03:01]}  Bg4 {[%clk 0:02:54]} 7. e5 {[%clk 0:03:00]}  dxe5 {[%clk 0:02:54]} 8. dxe5 {[%clk 0:03:01]}  Nd5 {[%clk 0:02:54]} 9. Rd1 {[%clk 0:02:56]}  c6 {[%clk 0:02:54]} 10. Bb3 {[%clk 0:02:36]}  Nd7 {[%clk 0:02:45]} 11. c4 {[%clk 0:02:34]}  Nc7 {[%clk 0:02:39]} 12. Bf4 {[%clk 0:02:22]}  Ne6 {[%clk 0:02:36]} 13. Bg3 {[%clk 0:02:22]}  Qc7 {[%clk 0:02:36]} 14. Nbd2 {[%clk 0:02:09]}  Rad8 {[%clk 0:02:29]} 15. Qe3 {[%clk 0:02:03]}  Qb6 {[%clk 0:02:09]} 16. Qxb6 {[%clk 0:01:52]}  axb6 {[%clk 0:02:08]} 17. h3 {[%clk 0:01:52]}  Bf5 {[%clk 0:02:01]} 18. Nh4 {[%clk 0:01:39]}  Bd3 {[%clk 0:01:56]} 19. Re1 {[%clk 0:01:29]}  Ndc5 {[%clk 0:01:52]} 20. Bd1 {[%clk 0:01:29]}  g5 {[%clk 0:01:47]} 21. Nhf3 {[%clk 0:01:27]}  h6 {[%clk 0:01:45]} 22. Rc1 {[%clk 0:01:19]}  Bf5 {[%clk 0:01:37]} 23. Bc2 {[%clk 0:01:08]}  Nd3 {[%clk 0:01:34]} 24. Bxd3 {[%clk 0:01:08]}  Rxd3 {[%clk 0:01:33]} 25. Nf1 {[%clk 0:01:02]}  Bxh3 {[%clk 0:01:30]} 26. gxh3 {[%clk 0:00:59]}  Rxf3 {[%clk 0:01:29]} 27. Ne3 {[%clk 0:00:59]}  Nf4 {[%clk 0:01:26]} 28. Rcd1 {[%clk 0:00:56]}  Bxe5 {[%clk 0:01:22]} 29. Ng4 {[%clk 0:00:32]}  Bg7 {[%clk 0:01:11]} 30. Nh2 {[%clk 0:00:32]}  Rd3 {[%clk 0:01:08]} 31. Bxf4 {[%clk 0:00:27]}  Rxd1 {[%clk 0:01:07]} 32. Rxd1 {[%clk 0:00:28]}  gxf4 {[%clk 0:01:07]} 33. b3 {[%clk 0:00:28]}  b5 {[%clk 0:01:02]} 34. cxb5 {[%clk 0:00:27]}  cxb5 {[%clk 0:01:02]} 35. Rd5 {[%clk 0:00:25]}  Ra8 {[%clk 0:00:56]} 36. Rxb5 {[%clk 0:00:25]}  Rxa2 {[%clk 0:00:55]} 37. Nf3 {[%clk 0:00:21]}  e5 {[%clk 0:00:52]} 38. Nh4 {[%clk 0:00:18]}  e4 {[%clk 0:00:51]} 39. Nf5 {[%clk 0:00:18]}  e3 {[%clk 0:00:44]} 40. fxe3 {[%clk 0:00:14]}  fxe3 {[%clk 0:00:44]} 41. Rxb7 {[%clk 0:00:14]}  Ra1+ {[%clk 0:00:42]} 0-1


[Site "https://www.chess.com"]

[Event "Titled Tuesday Blitz October 5 2021"]
[White "Dudzinski, Pawel"]
[Black "Shuvalov, Evgenij"]
[WhiteFideId "1117890"]
[BlackFideId "4187237"]
[WhiteElo "2193"]
[BlackElo "2129"]
[Result "1-0"]
[Round "08"]
[TimeControl "180+1"]
[Date "2021.10.05"]
[WhiteClock "0:00:03"]
[BlackClock "0:00:10"]

1. e4 {[%clk 0:03:00]}  e6 {[%clk 0:01:41]} 2. d4 {[%clk 0:02:59]}  d5 {[%clk 0:01:41]} 3. Nd2 {[%clk 0:02:59]}  Nf6 {[%clk 0:01:40]} 4. Bd3 {[%clk 0:02:58]}  c5 {[%clk 0:01:40]} 5. exd5 {[%clk 0:02:57]}  Qxd5 {[%clk 0:01:39]} 6. Ngf3 {[%clk 0:02:51]}  cxd4 {[%clk 0:01:39]} 7. O-O {[%clk 0:02:49]}  Nc6 {[%clk 0:01:40]} 8. Bc4 {[%clk 0:02:43]}  Qd6 {[%clk 0:01:39]} 9. Nb3 {[%clk 0:02:41]}  e5 {[%clk 0:01:36]} 10. Re1 {[%clk 0:02:36]}  Be7 {[%clk 0:01:35]} 11. Bb5 {[%clk 0:02:22]}  Bg4 {[%clk 0:01:32]} 12. h3 {[%clk 0:02:11]}  Bxf3 {[%clk 0:01:31]} 13. Qxf3 {[%clk 0:02:12]}  O-O {[%clk 0:01:30]} 14. Bg5 {[%clk 0:02:05]}  Rfe8 {[%clk 0:01:25]} 15. Rad1 {[%clk 0:01:51]}  Rad8 {[%clk 0:01:22]} 16. Bxc6 {[%clk 0:01:14]}  bxc6 {[%clk 0:01:21]} 17. Bxf6 {[%clk 0:01:13]}  Bxf6 {[%clk 0:01:20]} 18. Na5 {[%clk 0:01:13]}  Rc8 {[%clk 0:00:55]} 19. b3 {[%clk 0:01:12]}  Qd5 {[%clk 0:00:51]} 20. Nc4 {[%clk 0:01:10]}  Qxf3 {[%clk 0:00:50]} 21. gxf3 {[%clk 0:01:11]}  Rcd8 {[%clk 0:00:47]} 22. Re4 {[%clk 0:01:07]}  Re6 {[%clk 0:00:34]} 23. Kg2 {[%clk 0:00:49]}  Rde8 {[%clk 0:00:33]} 24. Rde1 {[%clk 0:00:48]}  g6 {[%clk 0:00:30]} 25. Kg3 {[%clk 0:00:43]}  Bg7 {[%clk 0:00:29]} 26. R4e2 {[%clk 0:00:20]}  f5 {[%clk 0:00:28]} 27. Rd1 {[%clk 0:00:15]}  e4 {[%clk 0:00:27]} 28. fxe4 {[%clk 0:00:12]}  fxe4 {[%clk 0:00:28]} 29. f3 {[%clk 0:00:09]}  exf3 {[%clk 0:00:20]} 30. Rxe6 {[%clk 0:00:10]}  Rxe6 {[%clk 0:00:20]} 31. Kxf3 {[%clk 0:00:10]}  c5 {[%clk 0:00:20]} 32. Rd2 {[%clk 0:00:08]}  Bh6 {[%clk 0:00:20]} 33. Re2 {[%clk 0:00:06]}  Rxe2 {[%clk 0:00:19]} 34. Kxe2 {[%clk 0:00:07]}  Kf7 {[%clk 0:00:19]} 35. Ne5+ {[%clk 0:00:07]}  Ke6 {[%clk 0:00:18]} 36. Nc6 {[%clk 0:00:05]}  Bg5 {[%clk 0:00:16]} 37. Nxa7 {[%clk 0:00:04]}  Kd5 {[%clk 0:00:15]} 38. Nb5 {[%clk 0:00:04]}  Bd8 {[%clk 0:00:14]} 39. a4 {[%clk 0:00:03]}  g5 {[%clk 0:00:15]} 40. Kf3 {[%clk 0:00:01]}  h5 {[%clk 0:00:15]} 41. Na3 {[%clk 0:00:01]}  d3 {[%clk 0:00:14]} 42. cxd3 {[%clk 0:00:01]}  Kd4 {[%clk 0:00:15]} 43. Nc4 {[%clk 0:00:01]}  Kxd3 {[%clk 0:00:14]} 44. a5 {[%clk 0:00:02]}  Kc3 {[%clk 0:00:12]} 45. a6 {[%clk 0:00:02]}  Bb6 {[%clk 0:00:12]} 46. Nxb6 {[%clk 0:00:02]}  Kxb3 {[%clk 0:00:13]} 47. a7 {[%clk 0:00:02]}  c4 {[%clk 0:00:14]} 48. Nxc4 {[%clk 0:00:03]}  Kxc4 {[%clk 0:00:14]} 49. a8=Q {[%clk 0:00:02]}  g4+ {[%clk 0:00:15]} 50. Kg3 {[%clk 0:00:01]}  h4+ {[%clk 0:00:12]} 51. Kxh4 {[%clk 0:00:02]}  gxh3 {[%clk 0:00:10]} 52. Kxh3 {[%clk 0:00:03]} 1-0


[Site "https://www.chess.com"]